[Event "*** SCC Grand Prix: Titled Tuesday Blitz"]
[Site "Chess.com"]
[Date "2020.07.21"]
[Round "5"]
[White "Ze-Pequeno"]
[Black "Boudicca64"]
[Result "1-0"]
[WhiteElo "2239"]
[BlackElo "1788"]
[TimeControl "180+1"]
[EndTime "10:56:09 PDT"]
[Termination "Ze-Pequeno won on time"]

1. f4 {[%clk 0:02:58.3]} 1... c5 {[%clk 0:02:58.9]} 2. Nf3 {[%clk 0:02:57.4]}
2... Nc6 {[%clk 0:02:58]} 3. g3 {[%clk 0:02:57.4]} 3... g6 {[%clk 0:02:57.7]} 4.
Bg2 {[%clk 0:02:57.5]} 4... Bg7 {[%clk 0:02:57.6]} 5. O-O {[%clk 0:02:57.1]}
5... e6 {[%clk 0:02:57.8]} 6. d3 {[%clk 0:02:54.3]} 6... Nge7 {[%clk 0:02:57.2]}
7. e4 {[%clk 0:02:52]} 7... O-O {[%clk 0:02:56.1]} 8. c3 {[%clk 0:02:48.6]} 8...
d5 {[%clk 0:02:54.7]} 9. Qe2 {[%clk 0:02:45.1]} 9... b6 {[%clk 0:02:53.8]} 10.
a4 {[%clk 0:02:26.6]} 10... Ba6 {[%clk 0:02:49.1]} 11. Rd1 {[%clk 0:02:24.1]}
11... Qc7 {[%clk 0:02:14.9]} 12. Na3 {[%clk 0:02:21.8]} 12... dxe4 {[%clk
0:02:08.8]} 13. Qxe4 {[%clk 0:02:19.9]} 13... Rad8 {[%clk 0:01:30.3]} 14. Nc4
{[%clk 0:01:54.7]} 14... Nd5 {[%clk 0:01:19.4]} 15. Bd2 {[%clk 0:01:45.2]} 15...
Nf6 {[%clk 0:01:14]} 16. Qe2 {[%clk 0:01:43.2]} 16... Nd7 {[%clk 0:01:04.7]} 17.
Be1 {[%clk 0:01:40.2]} 17... e5 {[%clk 0:01:02.5]} 18. f5 {[%clk 0:01:33.4]}
18... Rfe8 {[%clk 0:00:59]} 19. fxg6 {[%clk 0:01:18]} 19... hxg6 {[%clk
0:00:57.3]} 20. Bf2 {[%clk 0:01:12.8]} 20... Nf6 {[%clk 0:00:40.1]} 21. Ng5
{[%clk 0:01:09.1]} 21... e4 {[%clk 0:00:35.1]} 22. Nxe4 {[%clk 0:01:05.8]} 22...
Nxe4 {[%clk 0:00:33.7]} 23. dxe4 {[%clk 0:01:05.5]} 23... Ne5 {[%clk 0:00:31.7]}
24. b3 {[%clk 0:01:04.7]} 24... Nxc4 {[%clk 0:00:29.7]} 25. bxc4 {[%clk
0:01:04.7]} 25... Bxc3 {[%clk 0:00:29.8]} 26. Rac1 {[%clk 0:01:05.1]} 26... Bd4
{[%clk 0:00:28.4]} 27. Qf3 {[%clk 0:00:58.3]} 27... Qe5 {[%clk 0:00:26]} 28. Re1
{[%clk 0:00:54.8]} 28... Rd7 {[%clk 0:00:19.1]} 29. Kh1 {[%clk 0:00:50.4]} 29...
Red8 {[%clk 0:00:18.6]} 30. Be3 {[%clk 0:00:50.8]} 30... Bxe3 {[%clk 0:00:17.8]}
31. Qxe3 {[%clk 0:00:51.2]} 31... Rd3 {[%clk 0:00:17.6]} 32. Qf4 {[%clk
0:00:51.2]} 32... Qxf4 {[%clk 0:00:15]} 33. gxf4 {[%clk 0:00:51.6]} 33... R3d4
{[%clk 0:00:14.9]} 34. e5 {[%clk 0:00:51.9]} 34... Bxc4 {[%clk 0:00:14.7]} 35.
Kg1 {[%clk 0:00:49.8]} 35... Bd5 {[%clk 0:00:14.5]} 36. Bxd5 {[%clk 0:00:48.8]}
36... R8xd5 {[%clk 0:00:12.8]} 37. Rf1 {[%clk 0:00:49.7]} 37... Rxa4 {[%clk
0:00:12.4]} 38. Rc2 {[%clk 0:00:47.9]} 38... Ra3 {[%clk 0:00:11.7]} 39. Kf2
{[%clk 0:00:47.4]} 39... Rd4 {[%clk 0:00:11]} 40. Ke2 {[%clk 0:00:46.5]} 40...
Raa4 {[%clk 0:00:10.7]} 41. Ke3 {[%clk 0:00:45.5]} 41... Re4+ {[%clk 0:00:10.8]}
42. Kd3 {[%clk 0:00:45.9]} 42... Rxf4 {[%clk 0:00:10.7]} 43. Rxf4 {[%clk
0:00:46.8]} 43... Rxf4 {[%clk 0:00:10.6]} 44. e6 {[%clk 0:00:47.7]} 44... Rd4+
{[%clk 0:00:10.4]} 45. Kc3 {[%clk 0:00:47.1]} 45... fxe6 {[%clk 0:00:09.9]} 46.
Rf2 {[%clk 0:00:47]} 46... Kg7 {[%clk 0:00:09.3]} 47. Re2 {[%clk 0:00:46.7]}
47... a5 {[%clk 0:00:09.6]} 48. Rf2 {[%clk 0:00:47.6]} 48... a4 {[%clk
0:00:09.5]} 49. Rb2 {[%clk 0:00:46.5]} 49... Rb4 {[%clk 0:00:07.4]} 50. Re2
{[%clk 0:00:46.2]} 50... a3 {[%clk 0:00:07.2]} 51. Rxe6 {[%clk 0:00:44.6]} 51...
Rh4 {[%clk 0:00:06.5]} 52. Kb3 {[%clk 0:00:42.3]} 52... Rh3+ {[%clk 0:00:05.6]}
53. Ka2 {[%clk 0:00:42]} 53... b5 {[%clk 0:00:04.9]} 54. Rc6 {[%clk 0:00:38.6]}
54... b4 {[%clk 0:00:04.6]} 55. Rxc5 {[%clk 0:00:38.6]} 55... Rxh2+ {[%clk
0:00:05]} 56. Kb3 {[%clk 0:00:38.5]} 56... Rb2+ {[%clk 0:00:04.5]} 57. Ka4
{[%clk 0:00:36.6]} 57... a2 {[%clk 0:00:04.3]} 58. Rc7+ {[%clk 0:00:36.9]} 58...
Kh6 {[%clk 0:00:02.4]} 59. Rc1 {[%clk 0:00:37]} 1-0

[Event "*** SCC Grand Prix: Titled Tuesday Blitz"]
[Site "Chess.com"]
[Date "2020.07.21"]
[Round "5"]
[White "KingCrusher275"]
[Black "Gareth-Bale11"]
[Result "0-1"]
[WhiteElo "2400"]
[BlackElo "2706"]
[TimeControl "180+1"]
[EndTime "10:56:11 PDT"]
[Termination "Gareth-Bale11 won by checkmate"]

1. d4 {[%clk 0:03:00.9]} 1... Nf6 {[%clk 0:02:57.3]} 2. c4 {[%clk 0:03:00.8]}
2... e6 {[%clk 0:02:52]} 3. Nc3 {[%clk 0:03:01]} 3... Bb4 {[%clk 0:02:46.8]} 4.
Qc2 {[%clk 0:03:00.1]} 4... d5 {[%clk 0:02:45.8]} 5. cxd5 {[%clk 0:02:59.7]}
5... exd5 {[%clk 0:02:43.2]} 6. Bg5 {[%clk 0:02:59.5]} 6... h6 {[%clk
0:02:41.8]} 7. Bh4 {[%clk 0:02:59.5]} 7... g5 {[%clk 0:02:41.5]} 8. Bg3 {[%clk
0:02:59.5]} 8... h5 {[%clk 0:02:34]} 9. e3 {[%clk 0:02:47.9]} 9... Nc6 {[%clk
0:02:18.9]} 10. Bd3 {[%clk 0:02:38.5]} 10... h4 {[%clk 0:02:11.8]} 11. Be5
{[%clk 0:02:37.9]} 11... Nxe5 {[%clk 0:02:11.3]} 12. dxe5 {[%clk 0:02:38.8]}
12... Nd7 {[%clk 0:02:11.7]} 13. a3 {[%clk 0:02:04.4]} 13... Bf8 {[%clk
0:01:56.3]} 14. Nxd5 {[%clk 0:01:50.8]} 14... c6 {[%clk 0:01:54.3]} 15. Nc3
{[%clk 0:00:53]} 15... Nxe5 {[%clk 0:01:37.3]} 16. O-O-O {[%clk 0:00:48.9]}
16... Nxd3+ {[%clk 0:01:29]} 17. Rxd3 {[%clk 0:00:49.8]} 17... Qe7 {[%clk
0:01:29.2]} 18. Nge2 {[%clk 0:00:47.4]} 18... Bg7 {[%clk 0:01:27.4]} 19. Rhd1
{[%clk 0:00:43.6]} 19... O-O {[%clk 0:01:26.4]} 20. Nd4 {[%clk 0:00:42]} 20...
Bd7 {[%clk 0:01:16.4]} 21. R3d2 {[%clk 0:00:27.4]} 21... Rad8 {[%clk 0:00:52]}
22. g3 {[%clk 0:00:24.8]} 22... Bg4 {[%clk 0:00:23]} 23. Nf5 {[%clk 0:00:20.7]}
23... Qf6 {[%clk 0:00:19.8]} 24. Rxd8 {[%clk 0:00:18.4]} 24... Rxd8 {[%clk
0:00:20.3]} 25. Rxd8+ {[%clk 0:00:17.4]} 25... Qxd8 {[%clk 0:00:21.2]} 26. Nxg7
{[%clk 0:00:14.7]} 26... Kxg7 {[%clk 0:00:22.1]} 27. Qa4 {[%clk 0:00:13.5]}
27... Be6 {[%clk 0:00:20.7]} 28. Qxa7 {[%clk 0:00:12]} 28... Kg6 {[%clk
0:00:19.7]} 29. gxh4 {[%clk 0:00:11.5]} 29... gxh4 {[%clk 0:00:19.4]} 30. Qxb7
{[%clk 0:00:12]} 30... Qd3 {[%clk 0:00:19.3]} 31. Qxc6 {[%clk 0:00:10]} 31...
Qf1+ {[%clk 0:00:19.2]} 32. Kc2 {[%clk 0:00:10]} 32... Qxf2+ {[%clk 0:00:19.1]}
33. Kb1 {[%clk 0:00:10.5]} 33... Qxe3 {[%clk 0:00:15.8]} 34. Qg2+ {[%clk
0:00:09.1]} 34... Kf5 {[%clk 0:00:15.3]} 35. Qf1+ {[%clk 0:00:08.4]} 35... Kg5
{[%clk 0:00:13.4]} 36. Qg2+ {[%clk 0:00:08.7]} 36... Kf4 {[%clk 0:00:13.2]} 37.
Qf1+ {[%clk 0:00:08.7]} 37... Qf3 {[%clk 0:00:13.4]} 38. Qc1+ {[%clk 0:00:07.5]}
38... Kg4 {[%clk 0:00:13]} 39. a4 {[%clk 0:00:04.5]} 39... Kh3 {[%clk
0:00:11.7]} 40. a5 {[%clk 0:00:04.6]} 40... Qd3+ {[%clk 0:00:10.7]} 41. Ka1
{[%clk 0:00:04.2]} 41... Qd4 {[%clk 0:00:07]} 42. a6 {[%clk 0:00:02.2]} 42...
Kxh2 {[%clk 0:00:05.7]} 43. Qc2+ {[%clk 0:00:02.4]} 43... Kh3 {[%clk 0:00:05.7]}
44. Nb5 {[%clk 0:00:02.7]} 44... Qg1+ {[%clk 0:00:04.5]} 45. Qb1 {[%clk
0:00:02.4]} 45... Qb6 {[%clk 0:00:03.8]} 46. Qh1+ {[%clk 0:00:01.3]} 46... Kg4
{[%clk 0:00:03.4]} 47. Qg2+ {[%clk 0:00:01.8]} 47... Kf4 {[%clk 0:00:03.5]} 48.
a7 {[%clk 0:00:02.4]} 48... Qa5+ {[%clk 0:00:03]} 49. Kb1 {[%clk 0:00:02.5]}
49... Bf5+ {[%clk 0:00:03.3]} 50. Kc1 {[%clk 0:00:02.6]} 50... Qe1# {[%clk
0:00:03.2]} 0-1

[Event "*** SCC Grand Prix: Titled Tuesday Blitz"]
[Site "Chess.com"]
[Date "2020.07.21"]
[Round "5"]
[White "rugbyclub"]
[Black "UKR_Master"]
[Result "1-0"]
[WhiteElo "2132"]
[BlackElo "2316"]
[TimeControl "180+1"]
[EndTime "10:56:12 PDT"]
[Termination "rugbyclub won by checkmate"]

1. c4 {[%clk 0:03:00.4]} 1... e5 {[%clk 0:02:59.6]} 2. Nc3 {[%clk 0:03:00.2]}
2... Nf6 {[%clk 0:03:00.2]} 3. Nf3 {[%clk 0:03:00.1]} 3... Nc6 {[%clk 0:03:00]}
4. e3 {[%clk 0:03:00.3]} 4... d5 {[%clk 0:03:00.3]} 5. cxd5 {[%clk 0:02:59.7]}
5... Nxd5 {[%clk 0:03:01]} 6. Bb5 {[%clk 0:03:00]} 6... Nxc3 {[%clk 0:02:57.6]}
7. bxc3 {[%clk 0:02:59.2]} 7... Bd6 {[%clk 0:02:56.7]} 8. d4 {[%clk 0:02:59.2]}
8... e4 {[%clk 0:02:54.6]} 9. Nd2 {[%clk 0:02:58.6]} 9... Qe7 {[%clk 0:02:53.7]}
10. O-O {[%clk 0:02:53]} 10... O-O {[%clk 0:02:53.1]} 11. f3 {[%clk 0:02:39]}
11... Qh4 {[%clk 0:02:35.9]} 12. f4 {[%clk 0:02:34.4]} 12... Qe7 {[%clk
0:02:28.6]} 13. c4 {[%clk 0:02:18.8]} 13... Nxd4 {[%clk 0:01:51.6]} 14. exd4
{[%clk 0:02:16.7]} 14... c6 {[%clk 0:01:51.5]} 15. c5 {[%clk 0:01:57]} 15... e3
{[%clk 0:01:39.2]} 16. cxd6 {[%clk 0:01:52.9]} 16... Qxd6 {[%clk 0:01:39.3]} 17.
Nf3 {[%clk 0:01:32.7]} 17... cxb5 {[%clk 0:01:24.6]} 18. Bxe3 {[%clk 0:01:31.8]}
18... Re8 {[%clk 0:01:23.6]} 19. Qd2 {[%clk 0:01:27.5]} 19... Be6 {[%clk
0:01:22.9]} 20. Rfe1 {[%clk 0:01:26.8]} 20... a5 {[%clk 0:01:20.8]} 21. Rad1
{[%clk 0:01:18.1]} 21... Bd5 {[%clk 0:01:18.6]} 22. Ne5 {[%clk 0:01:10.6]} 22...
f6 {[%clk 0:01:15]} 23. Ng4 {[%clk 0:01:07.6]} 23... b4 {[%clk 0:01:08.6]} 24.
Rb1 {[%clk 0:00:59.1]} 24... Qd7 {[%clk 0:01:03.8]} 25. Nf2 {[%clk 0:00:54.6]}
25... Qa4 {[%clk 0:01:02.2]} 26. Rb2 {[%clk 0:00:51.4]} 26... Rac8 {[%clk
0:01:01.4]} 27. Nd3 {[%clk 0:00:50.6]} 27... b6 {[%clk 0:00:58.7]} 28. f5 {[%clk
0:00:50.3]} 28... Qb5 {[%clk 0:00:43]} 29. Nf4 {[%clk 0:00:45.4]} 29... Bf7
{[%clk 0:00:43.1]} 30. d5 {[%clk 0:00:40]} 30... Rcd8 {[%clk 0:00:39.4]} 31. Rd1
{[%clk 0:00:39.7]} 31... Rd6 {[%clk 0:00:37.5]} 32. Ne6 {[%clk 0:00:35.7]} 32...
Re7 {[%clk 0:00:30]} 33. Bf4 {[%clk 0:00:35.4]} 33... Rdd7 {[%clk 0:00:26.1]}
34. d6 {[%clk 0:00:31]} 34... Re8 {[%clk 0:00:26.6]} 35. Nc7 {[%clk 0:00:28.5]}
35... Qxf5 {[%clk 0:00:24.3]} 36. Nxe8 {[%clk 0:00:27]} 36... Bxe8 {[%clk
0:00:24.7]} 37. Qd5+ {[%clk 0:00:25.3]} 37... Qxd5 {[%clk 0:00:21.9]} 38. Rxd5
{[%clk 0:00:25.9]} 38... Kf7 {[%clk 0:00:22.1]} 39. Rb5 {[%clk 0:00:23.9]} 39...
Rxd6 {[%clk 0:00:20.3]} 40. Bxd6 {[%clk 0:00:22.6]} 40... Bxb5 {[%clk
0:00:20.8]} 41. Bc7 {[%clk 0:00:21.7]} 41... Bc4 {[%clk 0:00:21.3]} 42. Bxb6
{[%clk 0:00:21.3]} 42... Bxa2 {[%clk 0:00:21.2]} 43. Bxa5 {[%clk 0:00:20.6]}
43... b3 {[%clk 0:00:22]} 44. Kf2 {[%clk 0:00:20.6]} 44... Ke6 {[%clk
0:00:22.2]} 45. Ke3 {[%clk 0:00:20.8]} 45... Kd5 {[%clk 0:00:22.8]} 46. Kd3
{[%clk 0:00:20.9]} 46... Kc5 {[%clk 0:00:21.9]} 47. Kc3 {[%clk 0:00:20.8]} 47...
Kb5 {[%clk 0:00:22.2]} 48. Bb4 {[%clk 0:00:21.4]} 48... Kc6 {[%clk 0:00:21.8]}
49. Bf8 {[%clk 0:00:21.6]} 49... Kd5 {[%clk 0:00:22.7]} 50. Bxg7 {[%clk
0:00:21]} 50... f5 {[%clk 0:00:23.6]} 51. Bh6 {[%clk 0:00:20.6]} 51... Ke4
{[%clk 0:00:24.5]} 52. g3 {[%clk 0:00:20.4]} 52... Kf3 {[%clk 0:00:24.1]} 53.
Bf4 {[%clk 0:00:21]} 53... Kg4 {[%clk 0:00:24.1]} 54. h4 {[%clk 0:00:21.5]}
54... h5 {[%clk 0:00:25]} 55. Rxb3 {[%clk 0:00:21]} 55... Bxb3 {[%clk
0:00:24.8]} 56. Kxb3 {[%clk 0:00:21.7]} 56... Kf3 {[%clk 0:00:25.7]} 57. Kc3
{[%clk 0:00:22.3]} 57... Kg4 {[%clk 0:00:26.6]} 58. Kd3 {[%clk 0:00:22.9]} 58...
Kf3 {[%clk 0:00:27.5]} 59. Kd4 {[%clk 0:00:22.8]} 59... Kg4 {[%clk 0:00:28.4]}
60. Ke5 {[%clk 0:00:23.3]} 60... Kh3 {[%clk 0:00:27.3]} 61. Kxf5 {[%clk
0:00:23.6]} 61... Kg2 {[%clk 0:00:27.7]} 62. Kg5 {[%clk 0:00:24]} 62... Kh3
{[%clk 0:00:28.6]} 63. Kxh5 {[%clk 0:00:24.2]} 63... Kg2 {[%clk 0:00:29.5]} 64.
Kg5 {[%clk 0:00:24.8]} 64... Kh3 {[%clk 0:00:30.4]} 65. h5 {[%clk 0:00:25.2]}
65... Kg2 {[%clk 0:00:31.3]} 66. h6 {[%clk 0:00:25.8]} 66... Kh3 {[%clk
0:00:32.2]} 67. h7 {[%clk 0:00:26.5]} 67... Kg2 {[%clk 0:00:33.1]} 68. h8=Q
{[%clk 0:00:27.1]} 68... Kg1 {[%clk 0:00:34]} 69. g4 {[%clk 0:00:27.2]} 69...
Kf2 {[%clk 0:00:34.9]} 70. Kf5 {[%clk 0:00:27.6]} 70... Kg1 {[%clk 0:00:35.8]}
71. g5 {[%clk 0:00:28]} 71... Kg2 {[%clk 0:00:36.7]} 72. g6 {[%clk 0:00:28.4]}
72... Kg1 {[%clk 0:00:37.6]} 73. g7 {[%clk 0:00:29]} 73... Kf2 {[%clk
0:00:38.5]} 74. g8=Q {[%clk 0:00:28.5]} 74... Kf1 {[%clk 0:00:39.4]} 75. Qh3+
{[%clk 0:00:28.1]} 75... Ke2 {[%clk 0:00:40.3]} 76. Qgg2+ {[%clk 0:00:27.2]}
76... Kd1 {[%clk 0:00:40.6]} 77. Qhh1# {[%clk 0:00:26.2]} 1-0

[Event "*** SCC Grand Prix: Titled Tuesday Blitz"]
[Site "Chess.com"]
[Date "2020.07.21"]
[Round "5"]
[White "Bigfish1995"]
[Black "dretch"]
[Result "1-0"]
[WhiteElo "3030"]
[BlackElo "2831"]
[TimeControl "180+1"]
[EndTime "10:56:14 PDT"]
[Termination "Bigfish1995 won by checkmate"]

1. d4 {[%clk 0:03:00.9]} 1... d5 {[%clk 0:02:58.9]} 2. c4 {[%clk 0:03:00.7]}
2... c6 {[%clk 0:02:59.6]} 3. Nf3 {[%clk 0:03:00.3]} 3... Nf6 {[%clk 0:02:59.8]}
4. Qb3 {[%clk 0:02:59.9]} 4... dxc4 {[%clk 0:02:58.5]} 5. Qxc4 {[%clk
0:02:59.6]} 5... Bf5 {[%clk 0:02:58.7]} 6. g3 {[%clk 0:02:58.5]} 6... Nbd7
{[%clk 0:02:58]} 7. Bg2 {[%clk 0:02:58.3]} 7... e6 {[%clk 0:02:58.4]} 8. O-O
{[%clk 0:02:57.9]} 8... Bd6 {[%clk 0:02:58.6]} 9. Nc3 {[%clk 0:02:42.7]} 9...
O-O {[%clk 0:02:57.5]} 10. Bd2 {[%clk 0:02:25.6]} 10... e5 {[%clk 0:02:55.1]}
11. dxe5 {[%clk 0:02:13.1]} 11... Nxe5 {[%clk 0:02:55.7]} 12. Nxe5 {[%clk
0:02:11.4]} 12... Bxe5 {[%clk 0:02:56.6]} 13. Bf4 {[%clk 0:02:08.1]} 13... Be6
{[%clk 0:02:36.2]} 14. Qa4 {[%clk 0:02:02.7]} 14... b5 {[%clk 0:02:16.7]} 15.
Qa6 {[%clk 0:01:42.5]} 15... Bxf4 {[%clk 0:02:15.9]} 16. gxf4 {[%clk 0:01:42]}
16... b4 {[%clk 0:02:15.7]} 17. Na4 {[%clk 0:01:30.4]} 17... Bd5 {[%clk
0:02:14.9]} 18. Rad1 {[%clk 0:00:42.5]} 18... Qe7 {[%clk 0:02:13]} 19. e4 {[%clk
0:00:34]} 19... Nxe4 {[%clk 0:01:44]} 20. Rde1 {[%clk 0:00:34.4]} 20... Nc5
{[%clk 0:00:54.7]} 21. Rxe7 {[%clk 0:00:27.6]} 21... Nxa6 {[%clk 0:00:54.4]} 22.
Bxd5 {[%clk 0:00:28.1]} 22... cxd5 {[%clk 0:00:55.2]} 23. Rc1 {[%clk 0:00:28.4]}
23... d4 {[%clk 0:00:26.2]} 24. Rc6 {[%clk 0:00:27.3]} 24... Nb8 {[%clk
0:00:16.3]} 25. Rd6 {[%clk 0:00:26.8]} 25... a5 {[%clk 0:00:14.8]} 26. Nc5
{[%clk 0:00:25.6]} 26... a4 {[%clk 0:00:12.3]} 27. Rb7 {[%clk 0:00:24.4]} 27...
b3 {[%clk 0:00:11.5]} 28. a3 {[%clk 0:00:22.5]} 28... Ra5 {[%clk 0:00:10.7]} 29.
Nd3 {[%clk 0:00:18.3]} 29... g6 {[%clk 0:00:09.7]} 30. Ne5 {[%clk 0:00:14.7]}
30... Na6 {[%clk 0:00:09.1]} 31. Nc6 {[%clk 0:00:14.8]} 31... Rh5 {[%clk
0:00:08.1]} 32. Ne7+ {[%clk 0:00:14.6]} 32... Kg7 {[%clk 0:00:08]} 33. Rxa6
{[%clk 0:00:15.2]} 33... Re8 {[%clk 0:00:07.3]} 34. Rd6 {[%clk 0:00:14.7]} 34...
Rh4 {[%clk 0:00:06.1]} 35. Rxd4 {[%clk 0:00:13.6]} 35... Kf8 {[%clk 0:00:05.8]}
36. Nd5 {[%clk 0:00:12.6]} 36... Rd8 {[%clk 0:00:05.1]} 37. Rbb4 {[%clk
0:00:10.7]} 37... Rh5 {[%clk 0:00:04.4]} 38. Ne3 {[%clk 0:00:10.2]} 38... Rc8
{[%clk 0:00:04.5]} 39. Rbc4 {[%clk 0:00:10]} 39... Rb8 {[%clk 0:00:04.1]} 40.
Rxa4 {[%clk 0:00:10]} 40... Rc5 {[%clk 0:00:03.9]} 41. Rab4 {[%clk 0:00:10]}
41... Rxb4 {[%clk 0:00:03.7]} 42. Rxb4 {[%clk 0:00:09.9]} 42... Rc1+ {[%clk
0:00:03.9]} 43. Kg2 {[%clk 0:00:10.4]} 43... h5 {[%clk 0:00:04.1]} 44. Rxb3
{[%clk 0:00:10.5]} 44... h4 {[%clk 0:00:04.8]} 45. h3 {[%clk 0:00:11.1]} 45...
Kg7 {[%clk 0:00:04.8]} 46. a4 {[%clk 0:00:11.4]} 46... Kh6 {[%clk 0:00:04.4]}
47. a5 {[%clk 0:00:11.6]} 47... g5 {[%clk 0:00:04.9]} 48. fxg5+ {[%clk
0:00:11.6]} 48... Kxg5 {[%clk 0:00:05.8]} 49. a6 {[%clk 0:00:12]} 49... Rc7
{[%clk 0:00:05.7]} 50. Rb7 {[%clk 0:00:11.2]} 50... Rc6 {[%clk 0:00:05.9]} 51.
Rb5+ {[%clk 0:00:11.4]} 51... f5 {[%clk 0:00:05]} 52. Ra5 {[%clk 0:00:11.3]}
52... Kf4 {[%clk 0:00:04.9]} 53. a7 {[%clk 0:00:10.9]} 53... Rg6+ {[%clk
0:00:05.1]} 54. Kf1 {[%clk 0:00:11.4]} 54... Rc6 {[%clk 0:00:02.2]} 55. Rxf5+
{[%clk 0:00:11.2]} 55... Ke4 {[%clk 0:00:02.2]} 56. a8=Q {[%clk 0:00:11.6]}
56... Kd4 {[%clk 0:00:01.9]} 57. Rd5+ {[%clk 0:00:11]} 57... Ke4 {[%clk
0:00:01.8]} 58. Qe8+ {[%clk 0:00:10.6]} 58... Kf4 {[%clk 0:00:01.8]} 59. Rf5#
{[%clk 0:00:10.6]} 1-0

[Event "*** SCC Grand Prix: Titled Tuesday Blitz"]
[Site "Chess.com"]
[Date "2020.07.21"]
[Round "5"]
[White "dopolian"]
[Black "Gloomy_Wanderer"]
[Result "0-1"]
[WhiteElo "2429"]
[BlackElo "2694"]
[TimeControl "180+1"]
[EndTime "10:56:14 PDT"]
[Termination "Gloomy_Wanderer won on time"]

1. e4 {[%clk 0:03:00.9]} 1... c5 {[%clk 0:02:59.3]} 2. Nf3 {[%clk 0:03:01]} 2...
a6 {[%clk 0:02:59.3]} 3. c4 {[%clk 0:03:00.3]} 3... Nc6 {[%clk 0:02:58.6]} 4. d4
{[%clk 0:03:00.4]} 4... cxd4 {[%clk 0:02:58.4]} 5. Nxd4 {[%clk 0:03:01.3]} 5...
e5 {[%clk 0:02:58.9]} 6. Nc2 {[%clk 0:02:57.3]} 6... Bc5 {[%clk 0:02:58.3]} 7.
Nc3 {[%clk 0:02:48.4]} 7... Nf6 {[%clk 0:02:58.3]} 8. Be3 {[%clk 0:02:44.3]}
8... Bxe3 {[%clk 0:02:58.2]} 9. Nxe3 {[%clk 0:02:45.2]} 9... d6 {[%clk
0:02:58.7]} 10. Be2 {[%clk 0:02:43.6]} 10... Be6 {[%clk 0:02:58.7]} 11. O-O
{[%clk 0:02:43.8]} 11... O-O {[%clk 0:02:58.6]} 12. Rc1 {[%clk 0:02:41.7]} 12...
Rc8 {[%clk 0:02:58.1]} 13. b3 {[%clk 0:02:31.9]} 13... Nd4 {[%clk 0:02:57.1]}
14. Nc2 {[%clk 0:02:27.2]} 14... Nc6 {[%clk 0:02:46.5]} 15. Qd2 {[%clk
0:02:24.4]} 15... Qa5 {[%clk 0:02:44.9]} 16. Rfd1 {[%clk 0:02:17.6]} 16... Rfd8
{[%clk 0:02:44.1]} 17. f3 {[%clk 0:02:09.9]} 17... h6 {[%clk 0:02:31.2]} 18. Kf2
{[%clk 0:01:53.3]} 18... Kf8 {[%clk 0:02:02.2]} 19. Na4 {[%clk 0:01:31.9]} 19...
Qxd2 {[%clk 0:01:42.8]} 20. Rxd2 {[%clk 0:01:31.9]} 20... Rb8 {[%clk 0:01:37.3]}
21. Nb6 {[%clk 0:01:28.1]} 21... Nd7 {[%clk 0:01:31]} 22. Nxd7+ {[%clk
0:01:25.4]} 22... Rxd7 {[%clk 0:01:30.8]} 23. Rcd1 {[%clk 0:01:25.6]} 23... Ke7
{[%clk 0:01:30.7]} 24. g3 {[%clk 0:01:16.3]} 24... g6 {[%clk 0:01:26.5]} 25. f4
{[%clk 0:01:13.1]} 25... exf4 {[%clk 0:01:23.1]} 26. gxf4 {[%clk 0:01:06.5]}
26... f6 {[%clk 0:01:18.6]} 27. Ne3 {[%clk 0:01:01.1]} 27... g5 {[%clk
0:01:16.9]} 28. f5 {[%clk 0:00:40]} 28... Bg8 {[%clk 0:00:58.9]} 29. c5 {[%clk
0:00:40.1]} 29... Rbd8 {[%clk 0:00:58.8]} 30. cxd6+ {[%clk 0:00:30.6]} 30...
Rxd6 {[%clk 0:00:57.9]} 31. Rxd6 {[%clk 0:00:31.5]} 31... Rxd6 {[%clk
0:00:58.3]} 32. Rxd6 {[%clk 0:00:31.2]} 32... Kxd6 {[%clk 0:00:59.2]} 33. Bc4
{[%clk 0:00:31.8]} 33... Bxc4 {[%clk 0:00:55]} 34. Nxc4+ {[%clk 0:00:32.7]}
34... Kc5 {[%clk 0:00:55.9]} 35. Ke3 {[%clk 0:00:30.7]} 35... b5 {[%clk
0:00:55.4]} 36. Nd2 {[%clk 0:00:23.8]} 36... Ne5 {[%clk 0:00:54.9]} 37. h3
{[%clk 0:00:20.6]} 37... h5 {[%clk 0:00:54.4]} 38. a3 {[%clk 0:00:20]} 38... a5
{[%clk 0:00:52.9]} 39. Nb1 {[%clk 0:00:10.2]} 39... b4 {[%clk 0:00:50.7]} 40.
axb4+ {[%clk 0:00:09.5]} 40... axb4 {[%clk 0:00:51.6]} 41. Nd2 {[%clk
0:00:09.7]} 41... Kd6 {[%clk 0:00:47.1]} 42. Nf1 {[%clk 0:00:05.1]} 42... Nd7
{[%clk 0:00:43.9]} 43. Ng3 {[%clk 0:00:05.2]} 43... Nc5 {[%clk 0:00:37.3]} 44.
Nxh5 {[%clk 0:00:04.5]} 44... Ke5 {[%clk 0:00:37.7]} 45. Ng3 {[%clk 0:00:03.2]}
45... Nxb3 {[%clk 0:00:37.8]} 46. Ne2 {[%clk 0:00:03.1]} 46... Nc5 {[%clk
0:00:36.1]} 47. Nd4 {[%clk 0:00:02.2]} 47... Nxe4 {[%clk 0:00:28.3]} 48. Nc6+
{[%clk 0:00:02.3]} 48... Kxf5 {[%clk 0:00:28.4]} 49. Ne7+ {[%clk 0:00:02]} 49...
Ke6 {[%clk 0:00:28]} 50. Nc6 {[%clk 0:00:02.4]} 50... f5 {[%clk 0:00:22.6]} 51.
Nxb4 {[%clk 0:00:02.6]} 51... Nf6 {[%clk 0:00:22]} 52. Nd3 {[%clk 0:00:02.6]}
52... Nd5+ {[%clk 0:00:19.8]} 53. Kf3 {[%clk 0:00:03]} 53... Ne7 {[%clk
0:00:17]} 54. Nf2 {[%clk 0:00:03.2]} 54... Ng6 {[%clk 0:00:17.2]} 55. Nd3 {[%clk
0:00:02.8]} 55... Kd5 {[%clk 0:00:17.1]} 56. Nf2 {[%clk 0:00:02]} 56... Kd4
{[%clk 0:00:16.6]} 57. Nh1 {[%clk 0:00:01.5]} 57... Nh4+ {[%clk 0:00:16.2]} 58.
Kg3 {[%clk 0:00:01.7]} 58... Ke3 {[%clk 0:00:15.6]} 0-1